[Event "Titled Tuesday Blitz January 03 Late 2023"]
[White "Duda, Jan-Krzysztof"]
[Black "Roberson, Peter T"]
[WhiteFideId "1170546"]
[BlackFideId "412384"]
[WhiteElo "2724"]
[BlackElo "2430"]
[Result "1-0"]
[Round "03"]
[TimeControl "180+2"]
[Date "2023.01.03"]
[WhiteClock "0:00:29"]
[BlackClock "0:00:03"]

1. d4 {[%clk 0:03:00]}  d5 {[%clk 0:02:56]} 2. Nf3 {[%clk 0:03:01]}  Nf6 {[%clk 0:02:56]} 3. c4 {[%clk 0:03:02]}  c6 {[%clk 0:02:55]} 4. g3 {[%clk 0:03:01]}  e6 {[%clk 0:02:45]} 5. Bg2 {[%clk 0:03:01]}  Nbd7 {[%clk 0:02:44]} 6. O-O {[%clk 0:03:00]}  Be7 {[%clk 0:02:44]} 7. b3 {[%clk 0:02:59]}  O-O {[%clk 0:02:44]} 8. Bb2 {[%clk 0:02:59]}  a5 {[%clk 0:02:44]} 9. Nc3 {[%clk 0:02:59]}  b6 {[%clk 0:02:42]} 10. Ne5 {[%clk 0:02:48]}  Bb7 {[%clk 0:02:41]} 11. e4 {[%clk 0:02:43]}  Nxe5 {[%clk 0:02:34]} 12. dxe5 {[%clk 0:02:44]}  Nxe4 {[%clk 0:02:34]} 13. Nxe4 {[%clk 0:02:44]}  dxe4 {[%clk 0:02:35]} 14. Bxe4 {[%clk 0:02:44]}  Qc7 {[%clk 0:02:30]} 15. Qd3 {[%clk 0:02:35]}  g6 {[%clk 0:02:06]} 16. Qf3 {[%clk 0:02:35]}  Rab8 {[%clk 0:02:07]} 17. h4 {[%clk 0:02:04]}  c5 {[%clk 0:01:51]} 18. Rae1 {[%clk 0:02:05]}  Bxe4 {[%clk 0:01:47]} 19. Rxe4 {[%clk 0:02:06]}  Rbd8 {[%clk 0:01:43]} 20. h5 {[%clk 0:02:05]}  Rd2 {[%clk 0:01:40]} 21. Bc1 {[%clk 0:01:55]}  Rd4 {[%clk 0:01:36]} 22. Be3 {[%clk 0:01:44]}  Rxe4 {[%clk 0:01:35]} 23. Qxe4 {[%clk 0:01:45]}  Rd8 {[%clk 0:01:30]} 24. Kg2 {[%clk 0:01:43]}  Qd7 {[%clk 0:01:24]} 25. Rh1 {[%clk 0:01:41]}  Bf8 {[%clk 0:01:17]} 26. Bg5 {[%clk 0:01:17]}  Qd3 {[%clk 0:01:06]} 27. Qg4 {[%clk 0:01:09]}  Rd4 {[%clk 0:01:04]} 28. Qf3 {[%clk 0:00:58]}  Qxf3+ {[%clk 0:00:38]} 29. Kxf3 {[%clk 0:00:59]}  Bg7 {[%clk 0:00:39]} 30. Be3 {[%clk 0:00:59]}  Rd7 {[%clk 0:00:26]} 31. Ke4 {[%clk 0:00:59]}  Kf8 {[%clk 0:00:26]} 32. h6 {[%clk 0:00:50]}  Bh8 {[%clk 0:00:26]} 33. f4 {[%clk 0:00:50]}  Ke7 {[%clk 0:00:23]} 34. Rb1 {[%clk 0:00:37]}  f6 {[%clk 0:00:19]} 35. a3 {[%clk 0:00:33]}  Ra7 {[%clk 0:00:11]} 36. g4 {[%clk 0:00:29]}  Ra6 {[%clk 0:00:05]} 37. g5 {[%clk 0:00:27]}  fxe5 {[%clk 0:00:05]} 38. fxe5 {[%clk 0:00:28]}  a4 {[%clk 0:00:05]} 39. b4 {[%clk 0:00:27]}  cxb4 {[%clk 0:00:06]} 40. Rxb4 {[%clk 0:00:27]}  Ra5 {[%clk 0:00:04]} 41. Rb5 {[%clk 0:00:27]}  Rxb5 {[%clk 0:00:02]} 42. cxb5 {[%clk 0:00:28]}  Kd7 {[%clk 0:00:02]} 43. Bxb6 {[%clk 0:00:28]}  Kc8 {[%clk 0:00:03]} 44. Bd4 {[%clk 0:00:28]}  Kb7 {[%clk 0:00:03]} 45. Kd3 {[%clk 0:00:29]}  Kc7 {[%clk 0:00:02]} 46. Kc4 {[%clk 0:00:29]}  Kb7 {[%clk 0:00:02]} 47. Kb4 {[%clk 0:00:30]}  Bxe5 {[%clk 0:00:03]} 48. Bxe5 {[%clk 0:00:29]} 1-0


[Site "https://www.chess.com"]

[Event "Titled Tuesday Blitz January 03 Late 2023"]
[White "Svane, Rasmus"]
[Black "Cadena M, Gustavo Adolfo"]
[WhiteFideId "4657101"]
[BlackFideId "4404815"]
[WhiteElo "2623"]
[BlackElo "2195"]
[Result "1-0"]
[Round "03"]
[TimeControl "180+2"]
[Date "2023.01.03"]
[WhiteClock "0:00:12"]
[BlackClock "0:00:02"]

1. Nf3 {[%clk 0:03:00]}  d5 {[%clk 0:02:55]} 2. g3 {[%clk 0:03:01]}  Nf6 {[%clk 0:02:54]} 3. Bg2 {[%clk 0:03:01]}  c6 {[%clk 0:02:53]} 4. O-O {[%clk 0:03:01]}  Bf5 {[%clk 0:02:52]} 5. c4 {[%clk 0:03:02]}  e6 {[%clk 0:02:52]} 6. Qb3 {[%clk 0:03:01]}  Qb6 {[%clk 0:02:52]} 7. d3 {[%clk 0:03:01]}  Nbd7 {[%clk 0:02:52]} 8. cxd5 {[%clk 0:03:01]}  exd5 {[%clk 0:02:52]} 9. Qc2 {[%clk 0:03:01]}  Be7 {[%clk 0:02:49]} 10. Nc3 {[%clk 0:03:01]}  O-O {[%clk 0:02:48]} 11. e4 {[%clk 0:03:01]}  dxe4 {[%clk 0:02:48]} 12. dxe4 {[%clk 0:03:02]}  Bg6 {[%clk 0:02:48]} 13. Be3 {[%clk 0:03:02]}  Qc7 {[%clk 0:02:47]} 14. Nh4 {[%clk 0:03:02]}  Bc5 {[%clk 0:02:41]} 15. Bf4 {[%clk 0:03:00]}  Qa5 {[%clk 0:02:01]} 16. a3 {[%clk 0:03:00]}  Be7 {[%clk 0:01:53]} 17. Rad1 {[%clk 0:02:55]}  Rfd8 {[%clk 0:01:19]} 18. h3 {[%clk 0:02:45]}  Nf8 {[%clk 0:01:17]} 19. Be3 {[%clk 0:02:40]}  Ne6 {[%clk 0:01:14]} 20. f4 {[%clk 0:02:37]}  Nh5 {[%clk 0:00:34]} 21. Nxg6 {[%clk 0:02:35]}  hxg6 {[%clk 0:00:33]} 22. g4 {[%clk 0:02:36]}  Nf6 {[%clk 0:00:31]} 23. e5 {[%clk 0:02:36]}  Nh7 {[%clk 0:00:26]} 24. Ne4 {[%clk 0:02:30]}  g5 {[%clk 0:00:21]} 25. fxg5 {[%clk 0:02:05]}  Nhxg5 {[%clk 0:00:21]} 26. Nxg5 {[%clk 0:02:05]}  Bxg5 {[%clk 0:00:19]} 27. Bxg5 {[%clk 0:02:02]}  Nxg5 {[%clk 0:00:20]} 28. Qf5 {[%clk 0:01:55]}  Rxd1 {[%clk 0:00:19]} 29. Rxd1 {[%clk 0:01:56]}  Qc5+ {[%clk 0:00:18]} 30. Kh1 {[%clk 0:01:52]}  Ne6 {[%clk 0:00:17]} 31. Rd7 {[%clk 0:01:49]}  Rf8 {[%clk 0:00:17]} 32. Rxb7 {[%clk 0:01:48]}  Qc1+ {[%clk 0:00:17]} 33. Kh2 {[%clk 0:01:48]}  g6 {[%clk 0:00:18]} 34. Qf2 {[%clk 0:01:44]}  Nf4 {[%clk 0:00:17]} 35. Rc7 {[%clk 0:01:23]}  Nxg2 {[%clk 0:00:16]} 36. Kxg2 {[%clk 0:01:21]}  Qc4 {[%clk 0:00:16]} 37. Rxa7 {[%clk 0:01:11]}  Qd5+ {[%clk 0:00:15]} 38. Kg1 {[%clk 0:01:05]}  Qxe5 {[%clk 0:00:15]} 39. Rd7 {[%clk 0:01:04]}  Qe4 {[%clk 0:00:13]} 40. Rd4 {[%clk 0:01:01]}  Qb1+ {[%clk 0:00:13]} 41. Kg2 {[%clk 0:01:01]}  Re8 {[%clk 0:00:13]} 42. Qd2 {[%clk 0:00:51]}  Kh7 {[%clk 0:00:10]} 43. Rf4 {[%clk 0:00:51]}  Qa2 {[%clk 0:00:10]} 44. Qd4 {[%clk 0:00:46]}  Re2+ {[%clk 0:00:09]} 45. Rf2 {[%clk 0:00:47]}  Rxf2+ {[%clk 0:00:08]} 46. Kxf2 {[%clk 0:00:46]}  Qb3 {[%clk 0:00:09]} 47. Qc3 {[%clk 0:00:42]}  Qe6 {[%clk 0:00:08]} 48. a4 {[%clk 0:00:40]}  Qd6 {[%clk 0:00:08]} 49. a5 {[%clk 0:00:39]}  Qh2+ {[%clk 0:00:08]} 50. Ke1 {[%clk 0:00:40]}  Qg1+ {[%clk 0:00:08]} 51. Kd2 {[%clk 0:00:40]}  Qf2+ {[%clk 0:00:08]} 52. Kc1 {[%clk 0:00:41]}  Qf1+ {[%clk 0:00:09]} 53. Kc2 {[%clk 0:00:42]}  Qe2+ {[%clk 0:00:07]} 54. Kb3 {[%clk 0:00:41]}  Qb5+ {[%clk 0:00:08]} 55. Ka3 {[%clk 0:00:42]}  c5 {[%clk 0:00:08]} 56. b3 {[%clk 0:00:40]}  Kh6 {[%clk 0:00:05]} 57. Qd2+ {[%clk 0:00:39]}  Kh7 {[%clk 0:00:04]} 58. h4 {[%clk 0:00:38]}  Kg8 {[%clk 0:00:05]} 59. Qc3 {[%clk 0:00:32]}  Kh7 {[%clk 0:00:04]} 60. Qd2 {[%clk 0:00:30]}  c4 {[%clk 0:00:03]} 61. Qb4 {[%clk 0:00:25]}  Qe5 {[%clk 0:00:01]} 62. bxc4 {[%clk 0:00:21]}  Qa1+ {[%clk 0:00:01]} 63. Kb3 {[%clk 0:00:22]}  Qb1+ {[%clk 0:00:02]} 64. Ka4 {[%clk 0:00:22]}  Qd1+ {[%clk 0:00:01]} 65. Qb3 {[%clk 0:00:20]}  Qd7+ {[%clk 0:00:02]} 66. Ka3 {[%clk 0:00:19]}  Qd6+ {[%clk 0:00:01]} 67. Qb4 {[%clk 0:00:19]}  Qd3+ {[%clk 0:00:02]} 68. Ka4 {[%clk 0:00:19]}  Qd7+ {[%clk 0:00:03]} 69. Qb5 {[%clk 0:00:18]}  Qd1+ {[%clk 0:00:03]} 70. Kb4 {[%clk 0:00:19]}  Qe1+ {[%clk 0:00:03]} 71. Kc5 {[%clk 0:00:18]}  Qe3+ {[%clk 0:00:04]} 72. Kc6 {[%clk 0:00:17]}  Qe4+ {[%clk 0:00:04]} 73. Kb6 {[%clk 0:00:18]}  Qe6+ {[%clk 0:00:04]} 74. Qc6 {[%clk 0:00:18]}  Qe3+ {[%clk 0:00:04]} 75. c5 {[%clk 0:00:17]}  Qb3+ {[%clk 0:00:04]} 76. Qb5 {[%clk 0:00:18]}  Qe3 {[%clk 0:00:03]} 77. a6 {[%clk 0:00:18]}  Qe7 {[%clk 0:00:04]} 78. a7 {[%clk 0:00:17]}  Qd8+ {[%clk 0:00:05]} 79. Kb7 {[%clk 0:00:17]}  Qe7+ {[%clk 0:00:05]} 80. Ka6 {[%clk 0:00:17]}  Qe6+ {[%clk 0:00:05]} 81. c6 {[%clk 0:00:17]}  Qa2+ {[%clk 0:00:04]} 82. Kb7 {[%clk 0:00:18]}  Qh2 {[%clk 0:00:03]} 83. a8=Q {[%clk 0:00:17]}  Qxh4 {[%clk 0:00:04]} 84. c7 {[%clk 0:00:16]}  Qxg4 {[%clk 0:00:04]} 85. c8=Q {[%clk 0:00:16]}  Qg2+ {[%clk 0:00:04]} 86. Qcc6 {[%clk 0:00:15]}  Qe2 {[%clk 0:00:02]} 87. Qxe2 {[%clk 0:00:14]}  g5 {[%clk 0:00:02]} 88. Qh5+ {[%clk 0:00:13]}  Kg7 {[%clk 0:00:02]} 89. Qch6# {[%clk 0:00:12]} 1-0


[Site "https://www.chess.com"]

[Event "Titled Tuesday Blitz January 03 Late 2023"]
[White "Derige Kane, Yan"]
[Black "Svane, Frederik"]
[WhiteFideId "20665431"]
[BlackFideId "12923044"]
[WhiteElo "2204"]
[BlackElo "2600"]
[Result "0-1"]
[Round "03"]
[TimeControl "180+2"]
[Date "2023.01.03"]
[WhiteClock "0:00:04"]
[BlackClock "0:00:05"]

1. d4 {[%clk 0:02:55]}  a6 {[%clk 0:03:00]} 2. e4 {[%clk 0:02:54]}  d6 {[%clk 0:03:00]} 3. Bd3 {[%clk 0:02:54]}  g6 {[%clk 0:02:59]} 4. Be3 {[%clk 0:02:53]}  Bg7 {[%clk 0:02:59]} 5. Nc3 {[%clk 0:02:52]}  Nf6 {[%clk 0:02:57]} 6. Qd2 {[%clk 0:02:52]}  Ng4 {[%clk 0:02:57]} 7. Bg5 {[%clk 0:02:51]}  Bxd4 {[%clk 0:02:49]} 8. Nh3 {[%clk 0:02:51]}  Nc6 {[%clk 0:02:41]} 9. O-O-O {[%clk 0:02:47]}  Nge5 {[%clk 0:02:35]} 10. Bh6 {[%clk 0:02:34]}  Bxh3 {[%clk 0:02:19]} 11. gxh3 {[%clk 0:02:35]}  Qd7 {[%clk 0:02:19]} 12. f4 {[%clk 0:02:30]}  Nxd3+ {[%clk 0:02:15]} 13. Qxd3 {[%clk 0:02:31]}  O-O-O {[%clk 0:02:12]} 14. Ne2 {[%clk 0:01:58]}  Bf6 {[%clk 0:02:10]} 15. a3 {[%clk 0:01:19]}  Qe6 {[%clk 0:02:06]} 16. Kb1 {[%clk 0:01:19]}  Rhe8 {[%clk 0:01:58]} 17. Rhe1 {[%clk 0:01:18]}  Bh4 {[%clk 0:01:52]} 18. Rf1 {[%clk 0:01:17]}  f5 {[%clk 0:01:48]} 19. Nc3 {[%clk 0:00:55]}  Bf6 {[%clk 0:01:40]} 20. exf5 {[%clk 0:00:51]}  Qxf5 {[%clk 0:01:41]} 21. Ne4 {[%clk 0:00:51]}  d5 {[%clk 0:01:30]} 22. Nc5 {[%clk 0:00:43]}  e6 {[%clk 0:01:22]} 23. Qb3 {[%clk 0:00:34]}  b6 {[%clk 0:00:59]} 24. Nxa6 {[%clk 0:00:33]}  Kb7 {[%clk 0:00:55]} 25. Nc5+ {[%clk 0:00:32]}  Kc8 {[%clk 0:00:52]} 26. Qa4 {[%clk 0:00:22]}  Nb8 {[%clk 0:00:46]} 27. Na6 {[%clk 0:00:12]}  Kb7 {[%clk 0:00:40]} 28. Nxb8 {[%clk 0:00:10]}  Rxb8 {[%clk 0:00:41]} 29. Rd3 {[%clk 0:00:10]}  Ra8 {[%clk 0:00:39]} 30. Qb5 {[%clk 0:00:09]}  Red8 {[%clk 0:00:25]} 31. Re1 {[%clk 0:00:09]}  Rd6 {[%clk 0:00:25]} 32. Rde3 {[%clk 0:00:09]}  Rc6 {[%clk 0:00:21]} 33. Qb3 {[%clk 0:00:09]}  Ra5 {[%clk 0:00:18]} 34. Qd3 {[%clk 0:00:06]}  Qxd3 {[%clk 0:00:17]} 35. cxd3 {[%clk 0:00:07]}  Rb5 {[%clk 0:00:17]} 36. b4 {[%clk 0:00:08]}  Bc3 {[%clk 0:00:07]} 37. R1e2 {[%clk 0:00:07]}  Bd4 {[%clk 0:00:04]} 38. Rxe6 {[%clk 0:00:07]}  Rc3 {[%clk 0:00:05]} 39. Ka2 {[%clk 0:00:07]}  Rxd3 {[%clk 0:00:03]} 40. h4 {[%clk 0:00:06]}  c5 {[%clk 0:00:03]} 41. Re7+ {[%clk 0:00:06]}  Ka6 {[%clk 0:00:04]} 42. Re8 {[%clk 0:00:06]}  cxb4 {[%clk 0:00:04]} 43. axb4 {[%clk 0:00:03]}  Rxb4 {[%clk 0:00:04]} 44. Ra8+ {[%clk 0:00:03]}  Kb5 {[%clk 0:00:04]} 45. Bf8 {[%clk 0:00:02]}  Ra4+ {[%clk 0:00:04]} 46. Rxa4 {[%clk 0:00:02]}  Kxa4 {[%clk 0:00:05]} 47. f5 {[%clk 0:00:01]}  gxf5 {[%clk 0:00:05]} 48. Rg2 {[%clk 0:00:02]}  b5 {[%clk 0:00:05]} 49. Be7 {[%clk 0:00:02]}  b4 {[%clk 0:00:05]} 50. Kb1 {[%clk 0:00:03]}  b3 {[%clk 0:00:05]} 51. Kc1 {[%clk 0:00:03]}  Be3+ {[%clk 0:00:05]} 52. Kb1 {[%clk 0:00:03]}  Rd1+ {[%clk 0:00:05]} 53. Kb2 {[%clk 0:00:04]}  Bd4# {[%clk 0:00:05]} 0-1


[Site "https://www.chess.com"]

[Event "Titled Tuesday Blitz January 03 Late 2023"]
[White "Bryakin, Mikhail"]
[Black "Silva, Miguel Antonio Neto"]
[WhiteFideId "4165314"]
[BlackFideId "1911929"]
[WhiteElo "2455"]
[BlackElo "2204"]
[Result "1-0"]
[Round "03"]
[TimeControl "180+2"]
[Date "2023.01.03"]
[WhiteClock "0:00:35"]
[BlackClock "0:00:14"]

1. d4 {[%clk 0:02:43]}  Nf6 {[%clk 0:02:59]} 2. Bg5 {[%clk 0:02:41]}  Ne4 {[%clk 0:02:56]} 3. h4 {[%clk 0:02:41]}  c5 {[%clk 0:02:54]} 4. d5 {[%clk 0:02:33]}  Qb6 {[%clk 0:02:52]} 5. Qc1 {[%clk 0:02:25]}  g6 {[%clk 0:02:36]} 6. Nf3 {[%clk 0:02:21]}  Bg7 {[%clk 0:02:33]} 7. c3 {[%clk 0:02:20]}  d6 {[%clk 0:02:22]} 8. Nbd2 {[%clk 0:02:19]}  Nxg5 {[%clk 0:02:18]} 9. hxg5 {[%clk 0:02:18]}  h5 {[%clk 0:02:18]} 10. e4 {[%clk 0:02:16]}  Bg4 {[%clk 0:01:59]} 11. a4 {[%clk 0:02:10]}  Nd7 {[%clk 0:01:59]} 12. a5 {[%clk 0:02:08]}  Qc7 {[%clk 0:01:58]} 13. Bb5 {[%clk 0:02:04]}  a6 {[%clk 0:01:47]} 14. Bc4 {[%clk 0:01:55]}  O-O {[%clk 0:01:38]} 15. Nh2 {[%clk 0:01:51]}  Ne5 {[%clk 0:01:33]} 16. Nxg4 {[%clk 0:01:51]}  Nxg4 {[%clk 0:01:33]} 17. Be2 {[%clk 0:01:46]}  e6 {[%clk 0:01:22]} 18. Bxg4 {[%clk 0:01:41]}  hxg4 {[%clk 0:01:22]} 19. Nc4 {[%clk 0:01:42]}  exd5 {[%clk 0:01:22]} 20. exd5 {[%clk 0:01:41]}  Rfe8+ {[%clk 0:01:20]} 21. Kf1 {[%clk 0:01:41]}  Re4 {[%clk 0:01:16]} 22. Nb6 {[%clk 0:01:36]}  Rae8 {[%clk 0:01:16]} 23. Qd2 {[%clk 0:01:28]}  Qe7 {[%clk 0:01:14]} 24. g3 {[%clk 0:01:01]}  Re2 {[%clk 0:01:12]} 25. Qf4 {[%clk 0:01:02]}  Re4 {[%clk 0:00:49]} 26. Qd2 {[%clk 0:00:57]}  Qe5 {[%clk 0:00:32]} 27. Nd7 {[%clk 0:00:53]}  Qf5 {[%clk 0:00:31]} 28. Nf6+ {[%clk 0:00:44]}  Bxf6 {[%clk 0:00:27]} 29. gxf6 {[%clk 0:00:45]}  Qxf6 {[%clk 0:00:20]} 30. Qh6 {[%clk 0:00:45]}  Qg7 {[%clk 0:00:18]} 31. Qg5 {[%clk 0:00:43]}  R4e5 {[%clk 0:00:16]} 32. Qxg4 {[%clk 0:00:43]}  Rxd5 {[%clk 0:00:16]} 33. Qf3 {[%clk 0:00:40]}  Rf5 {[%clk 0:00:16]} 34. Qxb7 {[%clk 0:00:39]}  Qf6 {[%clk 0:00:16]} 35. Rh2 {[%clk 0:00:37]}  Kg7 {[%clk 0:00:15]} 36. Qxa6 {[%clk 0:00:36]}  Ree5 {[%clk 0:00:14]} 37. Qd3 {[%clk 0:00:34]}  Rf3 {[%clk 0:00:14]} 38. Qd2 {[%clk 0:00:33]}  Ref5 {[%clk 0:00:14]} 39. Qh6+ {[%clk 0:00:33]}  Kg8 {[%clk 0:00:13]} 40. Qh7+ {[%clk 0:00:33]}  Kf8 {[%clk 0:00:14]} 41. Qh8+ {[%clk 0:00:34]}  Qxh8 {[%clk 0:00:13]} 42. Rxh8+ {[%clk 0:00:34]}  Kg7 {[%clk 0:00:14]} 43. Rh2 {[%clk 0:00:35]}  Rxg3 {[%clk 0:00:14]} 44. a6 {[%clk 0:00:35]} 1-0


[Site "https://www.chess.com"]

[Event "Titled Tuesday Blitz January 03 Late 2023"]
[White "Kalogeris, Ioannis"]
[Black "Dourerassou, Jonathan"]
[WhiteFideId "4239563"]
[BlackFideId "628050"]
[WhiteElo "2423"]
[BlackElo "2414"]
[Result "0-1"]
[Round "03"]
[TimeControl "180+2"]
[Date "2023.01.03"]
[WhiteClock "0:01:07"]
[BlackClock "0:01:49"]

1. e4 {[%clk 0:02:58]}  e6 {[%clk 0:02:57]} 2. d4 {[%clk 0:02:55]}  d5 {[%clk 0:02:56]} 3. Nc3 {[%clk 0:02:54]}  dxe4 {[%clk 0:02:55]} 4. Nxe4 {[%clk 0:02:54]}  Nd7 {[%clk 0:02:56]} 5. Nf3 {[%clk 0:02:54]}  Ngf6 {[%clk 0:02:56]} 6. Bg5 {[%clk 0:02:54]}  Be7 {[%clk 0:02:56]} 7. Bxf6 {[%clk 0:02:53]}  Nxf6 {[%clk 0:02:57]} 8. Bd3 {[%clk 0:02:49]}  Nxe4 {[%clk 0:02:54]} 9. Bxe4 {[%clk 0:02:50]}  c5 {[%clk 0:02:54]} 10. dxc5 {[%clk 0:02:49]}  Qa5+ {[%clk 0:02:54]} 11. c3 {[%clk 0:02:49]}  Qxc5 {[%clk 0:02:55]} 12. O-O {[%clk 0:02:43]}  O-O {[%clk 0:02:55]} 13. Qb3 {[%clk 0:02:43]}  Qc7 {[%clk 0:02:53]} 14. Rfd1 {[%clk 0:02:42]}  Kh8 {[%clk 0:02:42]} 15. Rd2 {[%clk 0:02:38]}  f5 {[%clk 0:02:42]} 16. Bc2 {[%clk 0:02:34]}  e5 {[%clk 0:02:42]} 17. Re1 {[%clk 0:02:24]}  e4 {[%clk 0:02:41]} 18. Nd4 {[%clk 0:02:24]}  Bg5 {[%clk 0:02:35]} 19. Rdd1 {[%clk 0:02:20]}  Bd7 {[%clk 0:02:31]} 20. Qd5 {[%clk 0:02:12]}  Rae8 {[%clk 0:02:28]} 21. Bb3 {[%clk 0:02:09]}  e3 {[%clk 0:02:21]} 22. fxe3 {[%clk 0:02:03]}  Bxe3+ {[%clk 0:02:20]} 23. Kh1 {[%clk 0:02:03]}  f4 {[%clk 0:02:20]} 24. Nf3 {[%clk 0:01:54]}  Bc6 {[%clk 0:02:18]} 25. Qh5 {[%clk 0:01:53]}  g6 {[%clk 0:02:04]} 26. Qh3 {[%clk 0:01:50]}  Rf5 {[%clk 0:01:56]} 27. Nd4 {[%clk 0:01:12]}  Rh5 {[%clk 0:01:50]} 28. Qg4 {[%clk 0:01:07]}  f3 {[%clk 0:01:49]} 0-1


[Site "https://www.chess.com"]

[Event "Titled Tuesday Blitz January 03 Late 2023"]
[White "Reprintsev, Alexander"]
[Black "Antonica, Dragos-Andrei"]
[WhiteFideId "14100541"]
[BlackFideId "1246372"]
[WhiteElo "2253"]
[BlackElo "2373"]
[Result "1-0"]
[Round "03"]
[TimeControl "180+2"]
[Date "2023.01.03"]
[WhiteClock "0:00:46"]
[BlackClock "0:00:49"]

1. e4 {[%clk 0:02:09]}  d6 {[%clk 0:02:58]} 2. d4 {[%clk 0:02:08]}  Nf6 {[%clk 0:02:59]} 3. Nc3 {[%clk 0:02:08]}  Nbd7 {[%clk 0:03:00]} 4. g4 {[%clk 0:02:07]}  h6 {[%clk 0:02:59]} 5. Bg2 {[%clk 0:02:06]}  e5 {[%clk 0:02:59]} 6. Be3 {[%clk 0:02:01]}  c6 {[%clk 0:03:00]} 7. h3 {[%clk 0:01:59]}  Be7 {[%clk 0:03:00]} 8. Qd2 {[%clk 0:01:59]}  Qc7 {[%clk 0:03:00]} 9. Nge2 {[%clk 0:01:59]}  b5 {[%clk 0:02:54]} 10. Ng3 {[%clk 0:01:58]}  Nf8 {[%clk 0:02:49]} 11. Nf5 {[%clk 0:01:57]}  g6 {[%clk 0:02:42]} 12. Nxe7 {[%clk 0:01:57]}  Qxe7 {[%clk 0:02:42]} 13. a4 {[%clk 0:01:54]}  b4 {[%clk 0:02:42]} 14. Ne2 {[%clk 0:01:55]}  Ne6 {[%clk 0:02:40]} 15. Qxb4 {[%clk 0:01:42]}  exd4 {[%clk 0:02:33]} 16. Bxd4 {[%clk 0:01:43]}  c5 {[%clk 0:02:32]} 17. Bxf6 {[%clk 0:01:43]}  Qxf6 {[%clk 0:02:29]} 18. Qc3 {[%clk 0:01:42]}  Qxc3+ {[%clk 0:02:10]} 19. Nxc3 {[%clk 0:01:42]}  Nd4 {[%clk 0:02:10]} 20. O-O-O {[%clk 0:01:41]}  Be6 {[%clk 0:02:10]} 21. e5 {[%clk 0:01:30]}  O-O-O {[%clk 0:02:10]} 22. exd6 {[%clk 0:01:27]}  Rxd6 {[%clk 0:02:10]} 23. Ne4 {[%clk 0:01:25]}  Ne2+ {[%clk 0:02:02]} 24. Kb1 {[%clk 0:01:24]}  Rxd1+ {[%clk 0:02:03]} 25. Rxd1 {[%clk 0:01:24]}  Nf4 {[%clk 0:02:04]} 26. Bf1 {[%clk 0:01:24]}  h5 {[%clk 0:01:47]} 27. Nxc5 {[%clk 0:01:20]}  h4 {[%clk 0:01:41]} 28. Nxe6 {[%clk 0:01:19]}  fxe6 {[%clk 0:01:41]} 29. b4 {[%clk 0:01:11]}  Rf8 {[%clk 0:01:38]} 30. Kb2 {[%clk 0:01:10]}  Nd5 {[%clk 0:01:38]} 31. Bc4 {[%clk 0:01:03]}  Nxb4 {[%clk 0:01:31]} 32. Bxe6+ {[%clk 0:01:03]}  Kc7 {[%clk 0:01:26]} 33. Rd7+ {[%clk 0:01:03]}  Kb6 {[%clk 0:01:26]} 34. Rf7 {[%clk 0:00:58]}  Re8 {[%clk 0:01:26]} 35. Bb3 {[%clk 0:00:57]}  Re2 {[%clk 0:01:23]} 36. Rf6+ {[%clk 0:00:55]}  Kc5 {[%clk 0:01:22]} 37. Rxg6 {[%clk 0:00:55]}  Rxf2 {[%clk 0:01:22]} 38. Rg5+ {[%clk 0:00:49]}  Kd4 {[%clk 0:01:21]} 39. Rh5 {[%clk 0:00:47]}  Nd3+ {[%clk 0:01:18]} 40. Ka3 {[%clk 0:00:47]}  Nc5 {[%clk 0:00:49]} 41. Rd5+ {[%clk 0:00:46]} 1-0


[Site "https://www.chess.com"]

[Event "Titled Tuesday Blitz January 03 Late 2023"]
[White "Bochnicka, Vladimir"]
[Black "Nasuta, Grzegorz"]
[WhiteFideId "14943450"]
[BlackFideId "1141686"]
[WhiteElo "2327"]
[BlackElo "2552"]
[Result "0-1"]
[Round "03"]
[TimeControl "180+2"]
[Date "2023.01.03"]
[WhiteClock "0:00:27"]
[BlackClock "0:01:15"]

1. e4 {[%clk 0:02:46]}  c5 {[%clk 0:02:58]} 2. Nf3 {[%clk 0:02:46]}  e6 {[%clk 0:02:57]} 3. d4 {[%clk 0:02:47]}  cxd4 {[%clk 0:02:58]} 4. Nxd4 {[%clk 0:02:47]}  a6 {[%clk 0:02:58]} 5. c4 {[%clk 0:02:48]}  Nf6 {[%clk 0:02:55]} 6. Nc3 {[%clk 0:02:48]}  Qc7 {[%clk 0:02:55]} 7. a3 {[%clk 0:02:48]}  b6 {[%clk 0:02:54]} 8. Be3 {[%clk 0:02:49]}  Bb7 {[%clk 0:02:54]} 9. f3 {[%clk 0:02:45]}  Be7 {[%clk 0:02:54]} 10. Bd3 {[%clk 0:02:44]}  d6 {[%clk 0:02:55]} 11. O-O {[%clk 0:02:44]}  Nbd7 {[%clk 0:02:55]} 12. Rc1 {[%clk 0:02:44]}  O-O {[%clk 0:02:55]} 13. b4 {[%clk 0:02:44]}  Rfc8 {[%clk 0:02:50]} 14. Nb3 {[%clk 0:02:43]}  Qd8 {[%clk 0:02:44]} 15. f4 {[%clk 0:02:41]}  Rab8 {[%clk 0:02:42]} 16. g4 {[%clk 0:02:28]}  d5 {[%clk 0:02:41]} 17. cxd5 {[%clk 0:02:21]}  exd5 {[%clk 0:02:42]} 18. e5 {[%clk 0:02:22]}  Ne4 {[%clk 0:02:42]} 19. Nxe4 {[%clk 0:02:10]}  dxe4 {[%clk 0:02:43]} 20. Be2 {[%clk 0:02:11]}  Rxc1 {[%clk 0:02:36]} 21. Qxc1 {[%clk 0:02:06]}  Nf8 {[%clk 0:02:13]} 22. Rd1 {[%clk 0:02:05]}  Qe8 {[%clk 0:02:12]} 23. Bxb6 {[%clk 0:02:01]}  e3 {[%clk 0:02:09]} 24. Na5 {[%clk 0:01:09]}  Ba8 {[%clk 0:02:10]} 25. Bxe3 {[%clk 0:01:09]}  Ng6 {[%clk 0:02:09]} 26. Qd2 {[%clk 0:01:06]}  Qa4 {[%clk 0:01:18]} 27. Qd7 {[%clk 0:00:57]}  Qc2 {[%clk 0:01:18]} 28. Rd2 {[%clk 0:00:38]}  Qe4 {[%clk 0:01:15]} 29. Kf2 {[%clk 0:00:27]}  Bh4+ {[%clk 0:01:15]} 0-1


[Site "https://www.chess.com"]